fUSD/lending_fUSD_20260504
["ID","MTS","AMOUNT","RATE_DAILY","PERIOD"]
[421550146,1777860638000,-8335.84940174,0.00013699,2]
[421550135,1777860638000,-169.63533,0.00013699,2]
[421550141,1777860638000,-169.63533,0.00013699,2]
[421550148,1777860638000,-1058.9566945,0.00013699,2]
[421550144,1777860638000,-169.63533,0.00013699,2]
[421550151,1777860638000,-9993.76390376,0.00013699,2]
[421550157,1777860638000,-486.21790376,0.00013699,2]
[421550154,1777860638000,-13.78209624,0.00013699,2]
[421550159,1777860638000,-500.0,0.00013699,2]
[421550095,1777860638000,-500.0,0.00013698,2]
[421550119,1777860638000,-249.621403,0.00013699,2]
[421550127,1777860638000,-169.63533,0.00013699,2]
[421550133,1777860638000,-48.72264796,0.00013699,2]
[421550123,1777860638000,-249.621403,0.00013699,2]
[421550121,1777860638000,-249.621403,0.00013699,2]
[421550104,1777860638000,-500.0,0.00013698,2]
[421550097,1777860638000,-500.0,0.00013698,2]
[421550105,1777860638000,-33.12962335,0.00013698,2]
[421550096,1777860638000,-500.0,0.00013698,2]
[421550099,1777860638000,-500.0,0.00013698,2]
[421550109,1777860638000,-500.0,0.00013698,2]
[421550116,1777860638000,-152.207717,0.00013699,2]
[421550112,1777860638000,-1367.59415808,0.00013699,2]
[421550106,1777860638000,-466.87037665,0.00013698,2]
[421550098,1777860638000,-503.60593259,0.00013698,2]
[421550111,1777860638000,-2500.0,0.00013699,2]
[421550115,1777860638000,-151.0,0.00013699,2]
[421550107,1777860638000,-500.0,0.00013698,2]
[421550113,1777860638000,-3954.50584192,0.00013699,2]
[421550108,1777860638000,-500.0,0.00013698,2]
[421550114,1777860638000,-200.0,0.00013699,2]
[421550117,1777860638000,-249.621403,0.00013699,2]
[421550118,1777860638000,-249.621403,0.00013699,2]
[421550110,1777860638000,-167.68,0.00013699,2]
[421550124,1777860638000,-249.621403,0.00013699,2]
[421550217,1777860639000,-500.0,0.00013699,2]
[421550213,1777860639000,-500.0,0.00013699,2]
[421550214,1777860639000,-200.0,0.00013699,2]
[421550208,1777860639000,-500.0,0.00013699,2]
[421550212,1777860639000,-500.0,0.00013699,2]
[421550207,1777860639000,-500.0,0.00013699,2]
[421550205,1777860639000,-500.0,0.00013699,2]
[421550206,1777860639000,-500.0,0.00013699,2]
[421550204,1777860639000,-300.07565386,0.00013699,2]
[421550220,1777860639000,-500.0,0.00013699,2]
[421550210,1777860639000,-186.09111111,0.00013699,2]
[421550215,1777860639000,-500.0,0.00013699,2]
[421550218,1777860639000,-500.0,0.00013699,2]
[421550231,1777860639000,-165.81,0.00014049,2]
[421550228,1777860639000,-2313.21,0.00013746,2]
[421550227,1777860639000,-360.4,0.00013701,2]
[421550224,1777860639000,-500.0,0.00013699,2]
[421550225,1777860639000,-500.0,0.00013699,2]
[421550222,1777860639000,-500.0,0.00013699,2]
[421550223,1777860639000,-500.0,0.00013699,2]
[421550221,1777860639000,-500.0,0.00013699,2]
[421550226,1777860639000,-500.0,0.00013699,2]
[421550230,1777860639000,-250.0,0.00014,2]
[421550229,1777860639000,-167.68,0.00013927,2]
[421550240,1777860639000,-500.82170978,0.00014221,2]
[421550234,1777860639000,-433.0,0.00014156,2]
[421550211,1777860639000,-500.0,0.00013699,2]
[421550216,1777860639000,-500.0,0.00013699,2]
[421550209,1777860639000,-500.0,0.00013699,2]
[421550178,1777860639000,-500.0,0.00013699,2]
[421550201,1777860639000,-191.35177363,0.00013699,2]
[421550169,1777860639000,-500.0,0.00013699,2]
[421550171,1777860639000,-500.0,0.00013699,2]
[421550164,1777860639000,-420.09239535,0.00013699,2]
[421550166,1777860639000,-79.90760465,0.00013699,2]
[421550162,1777860639000,-500.0,0.00013699,2]
[421550176,1777860639000,-500.0,0.00013699,2]
[421550174,1777860639000,-500.0,0.00013699,2]
[421550233,1777860639000,-167.68,0.00014155,2]
[421550181,1777860639000,-500.0,0.00013699,2]
[421550183,1777860639000,-500.0,0.00013699,2]
[421550186,1777860639000,-500.0,0.00013699,2]
[421550185,1777860639000,-500.0,0.00013699,2]
[421550187,1777860639000,-33.93132247,0.00013699,2]
[421550188,1777860639000,-466.06867753,0.00013699,2]
[421550189,1777860639000,-500.0,0.00013699,2]
[421550190,1777860639000,-500.0,0.00013699,2]
[421550191,1777860639000,-500.0,0.00013699,2]
[421550196,1777860639000,-500.0,0.00013699,2]
[421550192,1777860639000,-500.0,0.00013699,2]
[421550194,1777860639000,-500.0,0.00013699,2]
[421550193,1777860639000,-500.0,0.00013699,2]
[421550197,1777860639000,-500.0,0.00013699,2]
[421550199,1777860639000,-500.0,0.00013699,2]
[421550200,1777860639000,-500.0,0.00013699,2]
[421550195,1777860639000,-500.0,0.00013699,2]
[421550198,1777860639000,-500.0,0.00013699,2]
[421550202,1777860639000,-308.64822637,0.00013699,2]
[421550203,1777860639000,-199.92434614,0.00013699,2]
[421550241,1777860639000,-1000.0,0.00014221,2]
[421550219,1777860639000,-500.0,0.00013699,2]
[421550235,1777860639000,-1000.0,0.00014221,2]
[421550275,1777860639000,-1218.973,0.00014852,2]
[421550279,1777860639000,-249.621403,0.00014852,2]
[421550272,1777860639000,-624.0,0.00014852,2]
[421550280,1777860639000,-169.63533,0.00014852,2]
[421550270,1777860639000,-150.098,0.00014852,2]
[421550271,1777860639000,-3535.0,0.00014852,2]
[421550269,1777860639000,-151.0,0.00014852,2]
[421550276,1777860639000,-249.621403,0.00014852,2]
[421550278,1777860639000,-249.621403,0.00014852,2]
[421550277,1777860639000,-249.621403,0.00014852,2]
[421550274,1777860639000,-1049.0,0.00014852,2]
[421550281,1777860639000,-169.63533,0.00014852,2]
[421550284,1777860639000,-164.906395,0.00014852,2]
[421550263,1777860639000,-4513.93380921,0.00014847,2]
[421550292,1777860639000,-492.475028,0.00014931,2]
[421550291,1777860639000,-798.01590182,0.00014915,2]
[421550293,1777860639000,-2000.0,0.00014942,2]
[421550294,1777860639000,-16507.6879061,0.00015,2]
[421550290,1777860639000,-578.20924308,0.00014915,2]
[421550285,1777860639000,-164.906395,0.00014852,2]
[421550283,1777860639000,-169.63533,0.00014852,2]
[421550286,1777860639000,-164.906395,0.00014852,2]
[421550287,1777860639000,-164.906395,0.00014852,2]
[421550289,1777860639000,-151.0,0.00014852,2]
[421550288,1777860639000,-151.0,0.00014852,2]
[421550295,1777860639000,-559.53366536,0.00015,2]
[421550297,1777860639000,-736.12857669,0.00015,2]
[421550237,1777860639000,-572.63857253,0.00014221,2]
[421550282,1777860639000,-169.63533,0.00014852,2]
[421550258,1777860639000,-1005.72609652,0.00014768,2]
[421550273,1777860639000,-1351.0,0.00014852,2]
[421550267,1777860639000,-194.343,0.00014852,2]
[421550236,1777860639000,-502.19643755,0.00014221,2]
[421550238,1777860639000,-504.95818592,0.00014221,2]
[421550232,1777860639000,-3762.78322378,0.00014122,2]
[421550239,1777860639000,-172.20009306,0.00014221,2]
[421550243,1777860639000,-1000.0,0.00014221,2]
[421550254,1777860639000,-160.71742,0.000147,2]
[421550253,1777860639000,-434.524136,0.00014554,2]
[421550259,1777860639000,-504.14107151,0.00014768,2]
[421550252,1777860639000,-165.82,0.00014487,2]
[421550249,1777860639000,-417.0,0.00014421,2]
[421550248,1777860639000,-6040.0,0.00014421,2]
[421550244,1777860639000,-1000.0,0.00014221,2]
[421550298,1777860639000,-535.74717723,0.00015,2]
[421550250,1777860639000,-160.71742,0.00014473,2]
[421550242,1777860639000,-463.60862204,0.00014221,2]
[421550247,1777860639000,-1221.0,0.0001442,2]
[421550260,1777860639000,-480.80104072,0.00014768,2]
[421550246,1777860639000,-167.68,0.00014384,2]
[421550264,1777860639000,-591.25,0.00014851,2]
[421550257,1777860639000,-1502.05177941,0.00014768,2]
[421550261,1777860639000,-1994.0,0.00014779,2]
[421550265,1777860639000,-204.71,0.00014852,2]
[421550262,1777860639000,-174.0,0.00014822,2]
[421550268,1777860639000,-166.588,0.00014852,2]
[421550256,1777860639000,-209.0,0.00014702,2]
[421550255,1777860639000,-175.80214,0.000147,2]
[421550251,1777860639000,-2373.328886,0.00014485,2]
[421550245,1777860639000,-157.6,0.00014235,2]
[421550266,1777860639000,-250.0,0.00014852,2]
[421550322,1777860640000,-413.18308917,0.00015068,2]
[421550313,1777860640000,-232.0,0.00013425,2]
[421550320,1777860640000,-889.974864,0.00015068,2]
[421550318,1777860640000,-10.61150717,0.00015068,2]
[421550315,1777860640000,-324.13687705,0.00015068,2]
[421550314,1777860640000,-158.93829404,0.00013699,2]
[421550317,1777860640000,-298.03861365,0.00015068,2]
[421550304,1777860640000,-102.70481235,0.00015055,2]
[421550299,1777860640000,-8350.78498937,0.00015,2]
[421550300,1777860640000,-24411.05308202,0.00015,2]
[421550303,1777860640000,-412.10135099,0.00015055,2]
[421550302,1777860640000,-417.56875235,0.00015,2]
[421550305,1777860640000,-277.8245093,0.00015068,2]
[421550319,1777860640000,-879.36335683,0.00015068,2]
[421550301,1777860640000,-24582.43124765,0.00015,2]
[421550321,1777860640000,-889.974864,0.00015068,2]
[421550337,1777860640000,-889.974864,0.00015068,2]
[421550323,1777860640000,-476.79177483,0.00015068,2]
[421550339,1777860640000,-731.90472414,0.00015068,2]
[421550334,1777860640000,-889.974864,0.00015068,2]
[421550335,1777860640000,-889.974864,0.00015068,2]
[421550336,1777860640000,-889.974864,0.00015068,2]
[421550338,1777860640000,-889.974864,0.00015068,2]
[421550333,1777860640000,-889.974864,0.00015068,2]
[421550340,1777860640000,-158.07013986,0.00015068,2]
[421550332,1777860640000,-889.974864,0.00015068,2]
[421550330,1777860640000,-889.974864,0.00015068,2]
[421550329,1777860640000,-889.974864,0.00015068,2]
[421550327,1777860640000,-732.61151289,0.00015068,2]
[421550328,1777860640000,-889.974864,0.00015068,2]
[421550325,1777860640000,-889.974864,0.00015068,2]
[421550326,1777860640000,-157.36335111,0.00015068,2]
[421550331,1777860640000,-889.974864,0.00015068,2]
[421550324,1777860640000,-889.974864,0.00015068,2]
[421550342,1777860641000,-61.54068714,0.00015104,2]
[421550341,1777860641000,-889.974873,0.00015068,2]
[421550374,1777860643000,-249.621403,0.00015133,2]
[421550379,1777860643000,-169.63533,0.00015133,2]
[421550381,1777860643000,-169.635333,0.00015133,2]
[421550382,1777860643000,-164.906395,0.00015133,2]
[421550384,1777860643000,-164.906395,0.00015133,2]
[421550394,1777860643000,-736.0,0.00015453,2]
[421550380,1777860643000,-169.63533,0.00015133,2]
[421550390,1777860643000,-2821.69,0.00015273,2]
[421550385,1777860643000,-164.906388,0.00015133,2]
[421550391,1777860643000,-27739.78,0.00015273,2]
[421550386,1777860643000,-151.0,0.00015133,2]
[421550393,1777860643000,-360.4,0.00015414,2]
[421550388,1777860643000,-151.33148,0.00015168,2]
[421550387,1777860643000,-154.422777,0.00015133,2]
[421550383,1777860643000,-164.906395,0.00015133,2]
[421550375,1777860643000,-249.621403,0.00015133,2]
[421550367,1777860643000,-43.97066844,0.00015104,2]
[421550378,1777860643000,-169.63533,0.00015133,2]
[421550392,1777860643000,-151.33148,0.00015368,2]
[421550361,1777860643000,-154.17,0.00013699,2]
[421550360,1777860643000,1225.52786195,0.00030137,120]
[421550362,1777860643000,-315.83,0.00014837,2]
[421550363,1777860643000,-1751.70942853,0.00014837,2]
[421550365,1777860643000,-151.33147,0.00014968,2]
[421550364,1777860643000,-395.46057147,0.00014837,2]
[421550366,1777860643000,-629.66864442,0.00015104,2]
[421550368,1777860643000,-157.6,0.00015124,2]
[421550371,1777860643000,-333.95356952,0.00015128,2]
[421550369,1777860643000,-516.14933156,0.00015128,2]
[421550370,1777860643000,-2224.33676444,0.00015128,2]
[421550373,1777860643000,-5085.91295377,0.00015133,2]
[421550372,1777860643000,-565.6909958,0.00015128,2]
[421550376,1777860643000,-249.621403,0.00015133,2]
[421550377,1777860643000,-249.621403,0.00015133,2]
[421550389,1777860643000,-165.81,0.00015208,2]
[421550402,1777860643000,-500.0,0.0001589,2]
[421550406,1777860643000,-500.0,0.0001589,2]
[421550409,1777860643000,-1745.13,0.00015923,2]
[421550416,1777860643000,-157.6,0.00016014,2]
[421550417,1777860643000,-349.19358166,0.000161,2]
[421550421,1777860643000,-287.0,0.00016222,5]
[421550423,1777860643000,-278.0,0.0001629,2]
[421550424,1777860643000,-173.0,0.0001629,2]
[421550419,1777860643000,-9999.99,0.00016116,2]
[421550425,1777860643000,-2000.0,0.000163,2]
[421550428,1777860643000,-155.58400147,0.00016371,2]
[421550429,1777860643000,-2342.3,0.00016438,2]
[421550427,1777860643000,-165.81,0.00016368,2]
[421550432,1777860643000,-500.0,0.00016438,2]
[421550430,1777860643000,-300.23554899,0.00016438,2]
[421550396,1777860643000,-151.33148,0.00015568,2]
[421550426,1777860643000,-591.25,0.00016336,2]
[421550414,1777860643000,-349.19358166,0.00016,2]
[421550431,1777860643000,-438.56,0.00016438,2]
[421550422,1777860643000,-214.0,0.00016222,5]
[421550420,1777860643000,-349.19358166,0.000162,2]
[421550398,1777860643000,-209.0,0.00015702,2]
[421550395,1777860643000,-212.14,0.000155,2]
[421550397,1777860643000,-461.0,0.00015687,2]
[421550399,1777860643000,-151.33148,0.00015768,2]
[421550400,1777860643000,-461.0,0.0001577,2]
[421550401,1777860643000,-500.0,0.0001589,2]
[421550407,1777860643000,-500.0,0.0001589,2]
[421550403,1777860643000,-500.0,0.0001589,2]
[421550404,1777860643000,-500.0,0.0001589,2]
[421550405,1777860643000,-500.0,0.0001589,2]
[421550408,1777860643000,-500.0,0.0001589,2]
[421550412,1777860643000,-824.92153,0.00016,2]
[421550411,1777860643000,-300.0,0.00016,2]
[421550433,1777860643000,-151.0,0.00016438,2]
[421550410,1777860643000,-337.86568634,0.0001596,2]
[421550478,1777860644000,-460.577327,0.00016438,2]
[421550481,1777860644000,-460.577327,0.00016438,2]
[421550474,1777860644000,-460.577327,0.00016438,2]
[421550472,1777860644000,-460.577327,0.00016438,2]
[421550471,1777860644000,-500.0,0.00016438,2]
[421550470,1777860644000,-307.57691001,0.00016438,2]
[421550473,1777860644000,-460.577327,0.00016438,2]
[421550469,1777860644000,-500.0,0.00016438,2]
[421550466,1777860644000,-1179.840517,0.00016438,2]
[421550467,1777860644000,-1179.840517,0.00016438,2]
[421550464,1777860644000,-1179.840517,0.00016438,2]
[421550475,1777860644000,-460.577327,0.00016438,2]
[421550476,1777860644000,-460.577327,0.00016438,2]
[421550492,1777860644000,-151.0,0.00016438,2]
[421550480,1777860644000,-460.577327,0.00016438,2]
[421550485,1777860644000,-460.577327,0.00016438,2]
[421550489,1777860644000,-460.577327,0.00016438,2]
[421550494,1777860644000,-151.0,0.00016438,2]
[421550491,1777860644000,-460.577326,0.00016438,2]
[421550488,1777860644000,-460.577327,0.00016438,2]
[421550483,1777860644000,-460.577327,0.00016438,2]
[421550487,1777860644000,-460.577327,0.00016438,2]
[421550484,1777860644000,-460.577327,0.00016438,2]
[421550482,1777860644000,-460.577327,0.00016438,2]
[421550486,1777860644000,-460.577327,0.00016438,2]
[421550468,1777860644000,-1179.840509,0.00016438,2]
[421550477,1777860644000,-460.577327,0.00016438,2]
[421550465,1777860644000,-1179.840517,0.00016438,2]
[421550446,1777860644000,-500.0,0.00016438,2]
[421550461,1777860644000,-1179.840517,0.00016438,2]
[421550434,1777860644000,-151.0,0.00016438,2]
[421550439,1777860644000,-241.35083,0.00016438,2]
[421550444,1777860644000,-181.84407951,0.00016438,2]
[421550440,1777860644000,-229.53,0.00016438,2]
[421550443,1777860644000,-500.0,0.00016438,2]
[421550437,1777860644000,-151.0,0.00016438,2]
[421550435,1777860644000,-151.0,0.00016438,2]
[421550436,1777860644000,-151.0,0.00016438,2]
[421550438,1777860644000,-151.0,0.00016438,2]
[421550441,1777860644000,-900.0,0.00016438,2]
[421550442,1777860644000,-500.0,0.00016438,2]
[421550456,1777860644000,-1179.840517,0.00016438,2]
[421550445,1777860644000,-599.70662562,0.00016438,2]
[421550463,1777860644000,-1179.840517,0.00016438,2]
[421550490,1777860644000,-460.577327,0.00016438,2]
[421550457,1777860644000,-1179.840517,0.00016438,2]
[421550454,1777860644000,-1179.840517,0.00016438,2]
[421550453,1777860644000,-1179.840517,0.00016438,2]
[421550448,1777860644000,-500.0,0.00016438,2]
[421550449,1777860644000,-1179.840517,0.00016438,2]
[421550455,1777860644000,-1179.840517,0.00016438,2]
[421550450,1777860644000,-1179.840517,0.00016438,2]
[421550452,1777860644000,-1179.840517,0.00016438,2]
[421550451,1777860644000,-1179.840517,0.00016438,2]
[421550458,1777860644000,-1179.840517,0.00016438,2]
[421550460,1777860644000,-1179.840517,0.00016438,2]
[421550459,1777860644000,-1179.840517,0.00016438,2]
[421550462,1777860644000,-1179.840517,0.00016438,2]
[421550447,1777860644000,-500.0,0.00016438,2]
[421550493,1777860644000,-151.0,0.00016438,2]
[421550479,1777860644000,-460.577327,0.00016438,2]
[421550495,1777860644000,-151.0,0.00016438,2]
[421550526,1777860644000,-6040.0,0.00017421,2]
[421550524,1777860644000,-326.0,0.00017418,2]
[421550529,1777860644000,-1500.0,0.00017534,2]
[421550530,1777860644000,-1500.0,0.00017534,2]
[421550531,1777860644000,-877.91782746,0.00017534,2]
[421550545,1777860644000,-500.0,0.0001785,2]
[421550535,1777860644000,-249.621403,0.000178,2]
[421550537,1777860644000,-249.621403,0.000178,2]
[421550546,1777860644000,-150.0,0.00017852,2]
[421550538,1777860644000,-249.621394,0.000178,2]
[421550534,1777860644000,-1305.46,0.000178,2]
[421550541,1777860644000,-160.0,0.00017812,2]
[421550544,1777860644000,-164.3255399,0.00017846,2]
[421550542,1777860644000,-591.25,0.00017821,2]
[421550536,1777860644000,-249.621403,0.000178,2]
[421550543,1777860644000,-2463.0,0.00017837,2]
[421550539,1777860644000,-207.68424212,0.00017812,2]
[421550547,1777860644000,-150.0,0.00017852,2]
[421550548,1777860644000,-150.0,0.00017852,2]
[421550551,1777860644000,-624.0,0.00017852,2]
[421550552,1777860644000,-1351.0,0.00017852,2]
[421550553,1777860644000,-1049.0,0.00017852,2]
[421550550,1777860644000,-3535.0,0.00017852,2]
[421550549,1777860644000,-150.0,0.00017852,2]
[421550555,1777860644000,-350.0,0.00018,2]
[421550554,1777860644000,-1200.0,0.000179,6]
[421550497,1777860644000,-151.0,0.00016438,2]
[421550527,1777860644000,-417.0,0.00017421,2]
[421550525,1777860644000,-1221.0,0.0001742,2]
[421550540,1777860644000,-162.48539177,0.00017812,2]
[421550523,1777860644000,-173.0,0.0001729,2]
[421550499,1777860644000,-151.0,0.00016438,2]
[421550528,1777860644000,-1500.0,0.00017534,2]
[421550500,1777860644000,-151.0,0.00016438,2]
[421550498,1777860644000,-151.0,0.00016438,2]
[421550502,1777860644000,-151.0,0.00016438,2]
[421550501,1777860644000,-151.0,0.00016438,2]
[421550506,1777860644000,-735.18,0.00016614,2]
[421550504,1777860644000,-500.0,0.00016438,2]
[421550507,1777860644000,-209.0,0.00016702,2]
[421550503,1777860644000,-218.786615,0.00016438,2]
[421550505,1777860644000,-2432.48,0.00016448,2]
[421550509,1777860644000,-1252.0,0.00016857,2]
[421550512,1777860644000,-500.0,0.00016986,2]
[421550510,1777860644000,-165.82,0.00016878,2]
[421550496,1777860644000,-151.0,0.00016438,2]
[421550522,1777860644000,-278.0,0.0001729,2]
[421550533,1777860644000,-209.0,0.00017702,2]
[421550519,1777860644000,-1000.0,0.00016986,2]
[421550521,1777860644000,-273.0,0.00017252,2]
[421550532,1777860644000,-699.54928801,0.00017654,2]
[421550515,1777860644000,-931.37015702,0.00016986,2]
[421550518,1777860644000,-1000.0,0.00016986,2]
[421550517,1777860644000,-726.02807004,0.00016986,2]
[421550516,1777860644000,-1000.0,0.00016986,2]
[421550513,1777860644000,-755.66033016,0.00016986,2]
[421550508,1777860644000,-199.25,0.00016712,2]
[421550520,1777860644000,-360.4,0.00017127,2]
[421550511,1777860644000,-390.54,0.0001697,2]
[421550514,1777860644000,-1000.0,0.00016986,2]
[421550607,1777860645000,-592.287577,0.00019178,2]
[421550602,1777860645000,-592.287577,0.00019178,2]
[421550600,1777860645000,-592.287577,0.00019178,2]
[421550599,1777860645000,-232.792364,0.00019178,2]
[421550601,1777860645000,-592.287577,0.00019178,2]
[421550596,1777860645000,-232.792369,0.00019178,2]
[421550593,1777860645000,-232.792369,0.00019178,2]
[421550591,1777860645000,-232.792369,0.00019178,2]
[421550586,1777860645000,-232.792369,0.00019178,2]
[421550590,1777860645000,-232.792369,0.00019178,2]
[421550594,1777860645000,-232.792369,0.00019178,2]
[421550597,1777860645000,-232.792369,0.00019178,2]
[421550587,1777860645000,-232.792369,0.00019178,2]
[421550605,1777860645000,-592.287577,0.00019178,2]
[421550612,1777860645000,-592.287577,0.00019178,2]
[421550608,1777860645000,-592.287577,0.00019178,2]
[421550598,1777860645000,-232.792369,0.00019178,2]
[421550606,1777860645000,-592.287577,0.00019178,2]
[421550604,1777860645000,-592.287577,0.00019178,2]
[421550610,1777860645000,-592.287577,0.00019178,2]
[421550609,1777860645000,-592.287577,0.00019178,2]
[421550618,1777860645000,-592.287577,0.00019178,2]
[421550620,1777860645000,-151.0,0.00019178,2]
[421550611,1777860645000,-592.287577,0.00019178,2]
[421550617,1777860645000,-592.287577,0.00019178,2]
[421550616,1777860645000,-592.287577,0.00019178,2]
[421550619,1777860645000,-592.287581,0.00019178,2]
[421550588,1777860645000,-232.792369,0.00019178,2]
[421550603,1777860645000,-592.287577,0.00019178,2]
[421550595,1777860645000,-232.792369,0.00019178,2]
[421550557,1777860645000,-509.95591116,0.00018082,2]
[421550584,1777860645000,-232.792369,0.00019178,2]
[421550556,1777860645000,-961.05515911,0.00018082,2]
[421550559,1777860645000,-735.18,0.00018125,2]
[421550558,1777860645000,-1851.4121579,0.00018082,2]
[421550621,1777860645000,-151.0,0.00019178,2]
[421550569,1777860645000,-1657.0,0.00018391,2]
[421550565,1777860645000,-1078.66240771,0.00018355,5]
[421550567,1777860645000,-3640.13066132,0.00018362,2]
[421550560,1777860645000,-1994.15,0.00018276,2]
[421550568,1777860645000,-5085.91295377,0.00018366,2]
[421550563,1777860645000,-173.0,0.0001829,2]
[421550562,1777860645000,-278.0,0.0001829,2]
[421550566,1777860645000,-89359.65,0.00018356,2]
[421550561,1777860645000,-23913.61,0.00018276,2]
[421550571,1777860645000,-11895.0,0.00018486,2]
[421550564,1777860645000,-200.0,0.00018352,2]
[421550572,1777860645000,-209.0,0.00018702,2]
[421550583,1777860645000,-232.792369,0.00019178,2]
[421550576,1777860645000,-500.0,0.00019178,2]
[421550573,1777860645000,-360.4,0.00018839,2]
[421550574,1777860645000,-221.826266,0.00019171,2]
[421550577,1777860645000,-500.0,0.00019178,2]
[421550575,1777860645000,-3000.0,0.00019178,2]
[421550582,1777860645000,-232.792369,0.00019178,2]
[421550579,1777860645000,-426.80125725,0.00019178,2]
[421550578,1777860645000,-500.0,0.00019178,2]
[421550580,1777860645000,-232.792369,0.00019178,2]
[421550581,1777860645000,-232.792369,0.00019178,2]
[421550592,1777860645000,-232.792369,0.00019178,2]
[421550585,1777860645000,-232.792369,0.00019178,2]
[421550589,1777860645000,-232.792369,0.00019178,2]
[421550615,1777860645000,-592.287577,0.00019178,2]
[421550570,1777860645000,-2342.3,0.0001841,2]
[421550614,1777860645000,-592.287577,0.00019178,2]
[421550652,1777860645000,-185.0,0.0002,2]
[421550653,1777860645000,-8052.0,0.0002,2]
[421550650,1777860645000,-925.0,0.0002,2]
[421550658,1777860645000,-760.0,0.0002,2]
[421550657,1777860645000,-1000.0,0.0002,7]
[421550655,1777860645000,-274.0,0.0002,2]
[421550672,1777860645000,-6040.0,0.00020421,2]
[421550673,1777860645000,-417.0,0.00020421,2]
[421550676,1777860645000,-360.4,0.00020552,2]
[421550675,1777860645000,-21756.15,0.00020548,2]
[421550674,1777860645000,-263.70321,0.00020532,7]
[421550663,1777860645000,-350.0,0.00020274,2]
[421550666,1777860645000,-173.0,0.0002029,2]
[421550661,1777860645000,-2835.248216,0.0002003,2]
[421550677,1777860645000,-450.0,0.00020822,2]
[421550667,1777860645000,-500.0,0.00020306,2]
[421550671,1777860645000,-1221.0,0.0002042,2]
[421550665,1777860645000,-278.0,0.0002029,2]
[421550670,1777860645000,-2342.3,0.00020381,2]
[421550669,1777860645000,-346.5,0.00020306,2]
[421550678,1777860645000,-2463.0,0.00020837,2]
[421550679,1777860645000,-150.0,0.00020852,2]
[421550681,1777860645000,-624.0,0.00020852,2]
[421550686,1777860645000,-254.47698812,0.00021,2]
[421550680,1777860645000,-3535.0,0.00020852,2]
[421550682,1777860645000,-1351.0,0.00020852,2]
[421550685,1777860645000,-199.14332781,0.00021,2]
[421550684,1777860645000,-1206.6078853,0.00021,2]
[421550613,1777860645000,-592.287577,0.00019178,2]
[421550656,1777860645000,-335.0,0.0002,2]
[421550659,1777860645000,-2000.0,0.0002001,2]
[421550683,1777860645000,-1049.0,0.00020852,2]
[421550651,1777860645000,-240.0,0.0002,2]
[421550654,1777860645000,-816.0,0.0002,2]
[421550631,1777860645000,-226.17950727,0.00019702,2]
[421550632,1777860645000,-500.0,0.00019726,2]
[421550622,1777860645000,-151.0,0.00019178,2]
[421550626,1777860645000,-151.0,0.00019178,2]
[421550623,1777860645000,-151.0,0.00019178,2]
[421550634,1777860645000,-502.79886553,0.00019726,2]
[421550628,1777860645000,-150.0,0.00019178,2]
[421550629,1777860645000,-278.0,0.0001929,2]
[421550625,1777860645000,-151.0,0.00019178,2]
[421550635,1777860645000,-187.87137309,0.00019726,2]
[421550627,1777860645000,-152.907321,0.00019178,2]
[421550624,1777860645000,-151.0,0.00019178,2]
[421550630,1777860645000,-173.0,0.0001929,2]
[421550633,1777860645000,-150.0,0.00019726,2]